bitfinex/quotes_BTCUSD_20250703
["timestamp","ask_amount","ask_price","bid_price","bid_amount"]
[1751546294129,0.341,109340.0,109330.0,0.13752173]
[1751546294297,0.341,109340.0,109330.0,0.12102173]
[1751546294506,5.38378693,109340.0,109330.0,0.12102173]
[1751546294828,5.87578517,109340.0,109330.0,0.12102173]
[1751546295151,6.10527628,109340.0,109330.0,0.02942159]
[1751546295366,6.11981713,109340.0,109330.0,0.02231251]
[1751546295568,6.11981713,109340.0,109300.0,0.11141256]
[1751546295569,5.67417521,109330.0,109300.0,0.11141256]
[1751546295767,5.44135,109310.0,109300.0,0.11141256]
[1751546296057,5.53278693,109310.0,109300.0,0.11141256]
[1751546296290,5.61059431,109310.0,109300.0,0.11141256]
[1751546296492,5.78364677,109310.0,109300.0,0.11141256]
[1751546297226,5.82023808,109310.0,109300.0,0.11141256]
[1751546297354,5.80194234,109310.0,109300.0,0.11141256]
[1751546297555,5.81109038,109310.0,109300.0,0.11141256]
[1751546297807,6.00320446,109310.0,109300.0,0.11141256]
[1751546297972,5.99405676,109310.0,109300.0,0.11141256]
[1751546298410,6.02187205,109310.0,109300.0,0.11141256]
[1751546298586,1.06137418,109310.0,109300.0,0.11141256]
[1751546298757,0.87840831,109310.0,109300.0,0.11141256]
[1751546298966,5.85136398,109310.0,109300.0,0.11141256]
[1751546299167,5.86051152,109310.0,109300.0,0.11141256]
[1751546299608,5.83306815,109310.0,109300.0,0.11141256]
[1751546299811,5.81246206,109310.0,109300.0,0.11141256]
[1751546300024,5.63026206,109310.0,109300.0,0.11141256]
[1751546300222,5.56160222,109310.0,109300.0,0.11141256]
[1751546301472,0.27025222,109310.0,109300.0,0.11141256]
[1751546301707,0.17881529,109310.0,109300.0,0.11141256]
[1751546302175,0.61025222,109310.0,109300.0,0.11141256]
[1751546302404,0.61425222,109310.0,109300.0,0.11241256]
[1751546302591,0.72409211,109310.0,109300.0,0.11241256]
[1751546302954,0.69159211,109310.0,109300.0,0.11241256]
[1751546305217,5.64294211,109310.0,109300.0,0.11241256]
[1751546306292,5.67474211,109310.0,109300.0,0.11241256]
[1751546306494,5.64294211,109310.0,109300.0,0.11241256]
[1751546307191,5.67494211,109310.0,109300.0,0.11241256]
[1751546307705,5.68408973,109310.0,109300.0,0.11241256]
[1751546307933,5.69323743,109310.0,109300.0,0.11241256]
[1751546308158,5.85753588,109310.0,109300.0,0.11241256]
[1751546308372,5.65627452,109310.0,109300.0,0.11241256]
[1751546308585,5.66542239,109310.0,109300.0,0.11241256]
[1751546308765,5.68371855,109310.0,109300.0,0.11241256]
[1751546309002,5.67497043,109310.0,109300.0,0.11241256]
[1751546309440,5.86708467,109310.0,109300.0,0.11241256]
[1751546309654,5.87669547,109310.0,109300.0,0.0949841]
[1751546309906,5.71741857,109310.0,109300.0,0.04916633]
[1751546310132,5.69912258,109310.0,109300.0,0.04916633]
[1751546310340,5.72656661,109310.0,109300.0,0.04916633]
[1751546310553,5.7124184,109310.0,109300.0,0.04816633]
[1751546310783,5.70327045,109310.0,109300.0,0.03900278]
[1751546311016,5.68657988,109310.0,109300.0,0.04000278]
[1751546311234,5.88408702,109310.0,109300.0,0.001]
[1751546311639,5.88408702,109310.0,109290.0,0.0164189]
[1751546311640,5.6805225,109300.0,109290.0,0.0164189]
[1751546311846,5.6805225,109300.0,109280.0,0.26010706]
[1751546311847,0.69129869,109290.0,109280.0,0.26010706]
[1751546312052,5.77573517,109290.0,109280.0,0.26010706]
[1751546312304,5.78112664,109290.0,109280.0,0.09433328]
[1751546312515,5.25135,109270.0,109260.0,0.00420455]
[1751546312739,5.25135,109270.0,109260.0,0.03490455]
[1751546312740,5.29135,109270.0,109260.0,0.03490455]
[1751546312945,0.34,109270.0,109260.0,0.24541057]
[1751546313172,0.34,109270.0,109260.0,0.23625868]
[1751546313414,0.34,109270.0,109260.0,0.24541057]
[1751546313676,0.34,109270.0,109260.0,0.26245939]
[1751546313900,0.341,109270.0,109260.0,0.26445939]
[1751546314115,0.34,109270.0,109260.0,0.26246435]
[1751546314765,0.00046976,109290.0,109280.0,0.0321]
[1751546315018,0.00046976,109290.0,109280.0,0.2151161]
[1751546315231,0.34046976,109290.0,109280.0,0.0321]
[1751546315433,0.05651274,109290.0,109280.0,0.0311]
[1751546315645,0.09190669,109290.0,109280.0,0.0311]
[1751546315853,0.43190669,109290.0,109280.0,0.0311]
[1751546316072,0.43190669,109290.0,109280.0,0.0291]
[1751546316699,0.43290669,109290.0,109280.0,0.0331]
[1751546316917,0.09290669,109290.0,109280.0,0.0331]
[1751546317129,5.18226072,109290.0,109280.0,0.004]
[1751546318224,5.10954336,109290.0,109280.0,0.004]
[1751546318440,5.11054336,109290.0,109280.0,0.006]
[1751546318895,5.52547664,109290.0,109280.0,0.006]
[1751546319107,5.6901774,109290.0,109280.0,0.006]
[1751546319217,4.95135,109270.0,109260.0,0.00420455]
[1751546319440,5.14055904,109270.0,109260.0,0.00420455]
[1751546319648,5.63971001,109270.0,109260.0,0.00420455]
[1751546319849,5.88179544,109270.0,109260.0,0.00420455]
[1751546320069,5.68961187,109270.0,109260.0,0.00420455]
[1751546320274,5.87264472,109270.0,109260.0,0.00420455]
[1751546320907,5.87464472,109270.0,109260.0,0.00620455]
[1751546321119,5.87564472,109270.0,109260.0,0.00820455]
[1751546322183,5.72414472,109270.0,109250.0,0.05805323]
[1751546322390,5.39193865,109260.0,109250.0,0.05805323]
[1751546322597,5.51716718,109260.0,109250.0,0.05805323]
[1751546322723,5.50801479,109260.0,109250.0,0.05805323]
[1751546322928,5.7002167,109260.0,109250.0,0.05805323]
[1751546323127,5.5488671,109260.0,109250.0,0.05805323]
[1751546323328,5.56573835,109260.0,109250.0,0.05805323]
[1751546323578,5.54743474,109260.0,109250.0,0.05905323]
[1751546323786,5.73248434,109260.0,109250.0,0.06205323]
[1751546323991,5.73248434,109260.0,109250.0,0.06105323]
[1751546324185,0.34,109240.0,109230.0,0.005]
[1751546324411,0.75974511,109240.0,109230.0,0.005]
[1751546324775,0.78777207,109240.0,109230.0,0.005]
[1751546324988,5.74545014,109240.0,109230.0,0.005]
[1751546325437,5.74591961,109240.0,109230.0,0.005]
[1751546325639,5.74791961,109240.0,109230.0,0.009]
[1751546325998,5.74791961,109240.0,109230.0,0.0408]
[1751546326197,0.79024154,109240.0,109230.0,0.0408]
[1751546326805,0.79124154,109240.0,109230.0,0.0408]
[1751546327915,0.79124154,109240.0,109230.0,0.009]
[1751546328272,0.79124154,109240.0,109230.0,0.0255]
[1751546328733,5.74259154,109240.0,109230.0,0.009]
[1751546329399,5.74259154,109240.0,109230.0,0.0252]
[1751546329570,0.77437029,109240.0,109230.0,0.0252]
[1751546330092,5.72572029,109240.0,109230.0,0.009]
[1751546330490,5.74258132,109240.0,109230.0,0.009]
[1751546331718,0.77437029,109240.0,109230.0,0.024]
[1751546332090,0.79123134,109240.0,109230.0,0.0397]
[1751546332675,0.77437029,109240.0,109230.0,0.0397]
[1751546333077,0.77437029,109240.0,109230.0,0.009]
[1751546333305,0.79123453,109240.0,109230.0,0.009]
[1751546333722,5.74258453,109240.0,109230.0,0.009]
[1751546333945,0.79123453,109240.0,109230.0,0.009]
[1751546334156,0.77437029,109240.0,109230.0,0.0248]
[1751546334366,0.77437029,109240.0,109230.0,0.04]
[1751546335162,0.84708765,109240.0,109230.0,0.04]
[1751546335371,0.79124123,109240.0,109230.0,0.04]
[1751546336477,0.68293336,109240.0,109230.0,0.04915491]
[1751546336714,0.68293336,109240.0,109230.0,0.04]
[1751546336928,0.22346947,109240.0,109230.0,0.23225479]
[1751546337147,0.22346947,109240.0,109230.0,0.25056418]
[1751546337403,0.22346947,109240.0,109230.0,0.24140961]
[1751546337634,0.3149064,109240.0,109230.0,0.25056435]
[1751546337825,0.22346947,109240.0,109230.0,0.259719]
[1751546337953,0.22346947,109240.0,109230.0,0.24140961]
[1751546338155,0.22346947,109240.0,109230.0,0.25971866]
[1751546338558,0.22346947,109240.0,109230.0,0.25056426]
[1751546338791,0.22346947,109240.0,109230.0,0.25971875]
[1751546338792,0.31139228,109240.0,109230.0,0.25971875]
[1751546338965,0.31139228,109240.0,109230.0,0.25056435]
[1751546339227,0.31139228,109240.0,109230.0,0.2688734]
[1751546339228,0.22346947,109240.0,109230.0,0.2688734]
[1751546340159,0.22346947,109240.0,109230.0,0.2322547]
[1751546340420,0.22346947,109240.0,109230.0,0.24140961]
[1751546340649,0.22346947,109240.0,109230.0,0.2597185]
[1751546340876,0.22346947,109240.0,109230.0,0.04]
[1751546341095,0.38762376,109240.0,109230.0,0.04]
[1751546341521,0.38762376,109240.0,109230.0,0.0248]
[1751546341755,0.38762376,109240.0,109230.0,0.009]
[1751546341987,0.47906069,109240.0,109230.0,0.009]
[1751546342225,5.77041069,109240.0,109230.0,0.009]
[1751546342445,5.77674783,109240.0,109230.0,0.009]
[1751546342708,5.79130123,109240.0,109230.0,0.009]
[1751546342929,5.76674783,109240.0,109230.0,0.009]
[1751546343404,0.10124354,109240.0,109230.0,0.23215479]
[1751546343633,0.00346947,109240.0,109230.0,0.25046384]
[1751546343858,0.00346947,109240.0,109230.0,0.34190077]
[1751546344116,5.0,109250.0,109240.0,0.64264725]
[1751546344377,5.0,109250.0,109240.0,0.73408418]
[1751546344631,5.0,109250.0,109240.0,0.33288149]
[1751546345072,4.99,109250.0,109240.0,0.33288149]
[1751546345559,4.9904,109250.0,109240.0,0.33288149]
[1751546346018,4.9924,109250.0,109240.0,0.75662503]
[1751546346481,4.9904,109250.0,109240.0,0.34742234]
[1751546346693,4.9436,109250.0,109240.0,0.8370341]
[1751546346903,4.9446,109250.0,109240.0,0.8430341]
[1751546347118,4.9446,109250.0,109240.0,0.44183141]
[1751546347319,4.9446,109250.0,109240.0,0.8430341]
[1751546347535,4.8871,109250.0,109240.0,0.8121341]
[1751546347738,4.8871,109250.0,109240.0,0.8162341]
[1751546347739,4.883,109250.0,109240.0,0.8162341]
[1751546348181,4.883,109250.0,109240.0,0.87098244]
[1751546348372,4.41522161,109250.0,109240.0,1.55543679]
[1751546348585,0.07271736,109280.0,109270.0,0.21048675]
[1751546348796,0.07271736,109280.0,109270.0,0.30192368]
[1751546349665,0.07271736,109280.0,109270.0,0.29277263]
[1751546349815,0.07271736,109280.0,109270.0,0.30492368]
[1751546349816,0.0738582,109280.0,109270.0,0.30492368]
[1751546350013,0.0738582,109280.0,109270.0,0.31407482]
[1751546350244,0.0738582,109280.0,109270.0,0.30492368]
[1751546351503,0.0738582,109280.0,109270.0,0.1951844]
[1751546351858,0.00114084,109280.0,109270.0,0.22263814]
[1751546352334,0.00114084,109280.0,109270.0,0.004]
[1751546352335,0.4898582,109280.0,109270.0,0.004]
[1751546352470,0.61016402,109280.0,109270.0,0.004]
[1751546352876,0.66016402,109280.0,109270.0,0.004]
[1751546354166,5.85295095,109280.0,109270.0,0.004]
[1751546354624,5.88040201,109280.0,109270.0,0.004]
[1751546354830,5.87125146,109280.0,109270.0,0.004]
[1751546355061,0.415,109250.0,109230.0,0.027519]
[1751546355288,0.543,109250.0,109230.0,0.027519]
[1751546355494,0.3718,109240.0,109230.0,0.027519]
[1751546355697,0.4468,109240.0,109210.0,0.20138911]
[1751546355919,0.4468,109240.0,109220.0,0.027523]
[1751546355920,0.4313,109240.0,109220.0,0.027523]
[1751546356126,0.4313,109240.0,109210.0,0.31113853]
[1751546356127,0.0318,109230.0,109210.0,0.30198203]
[1751546356356,0.49148,109230.0,109210.0,0.21054569]
[1751546356644,0.4464,109220.0,109210.0,0.027525]
[1751546357367,0.4464,109220.0,109200.0,0.20138865]
[1751546357588,0.4464,109220.0,109200.0,0.027526]
[1751546358203,0.4464,109220.0,109200.0,0.22899069]
[1751546358420,0.50052207,109220.0,109200.0,0.22899069]
[1751546358638,0.50052207,109220.0,109200.0,0.23814803]
[1751546358855,0.1064,109220.0,109210.0,0.20244666]
[1751546359076,0.002,109220.0,109210.0,0.23781493]
[1751546359285,0.077,109220.0,109210.0,0.23781493]
[1751546359502,0.1099,109220.0,109210.0,0.01705586]
[1751546359749,0.16437207,109220.0,109210.0,0.20934585]
[1751546359976,0.16537207,109220.0,109210.0,0.21850218]
[1751546360191,0.1109,109220.0,109210.0,0.21850235]
[1751546360403,0.1099,109220.0,109210.0,0.21850235]
[1751546360606,0.1079,109220.0,109210.0,0.01705586]
[1751546360824,0.1079,109220.0,109200.0,0.22898985]
[1751546360825,0.5,109210.0,109200.0,0.027526]
[1751546361060,0.5,109210.0,109130.0,0.27491167]
[1751546361061,0.0319,109170.0,109130.0,0.27491167]
[1751546361281,0.4469,109170.0,109160.0,0.027534]
[1751546361504,0.0325,109160.0,109130.0,0.30240046]
[1751546361736,0.0325,109160.0,109150.0,0.027535]
[1751546361980,0.05,109150.0,109130.0,6e-05]
[1751546362196,0.4475,109150.0,109130.0,0.22002727]
[1751546362423,0.3725,109150.0,109130.0,0.028598]
[1751546362646,0.41514058,109150.0,109140.0,0.19241341]
[1751546362830,0.34014058,109150.0,109140.0,0.21073806]
[1751546363079,0.07514058,109150.0,109140.0,0.20157586]
[1751546363328,0.00014058,109150.0,109140.0,0.21989984]
[1751546363595,0.03244058,109150.0,109140.0,0.19241341]
[1751546363776,0.00014058,109150.0,109140.0,0.19241324]
[1751546363980,0.07514058,109150.0,109140.0,0.20157552]
[1751546364192,0.07514058,109150.0,109140.0,0.21990018]
[1751546364416,0.07514058,109150.0,109130.0,0.22003241]
[1751546364631,0.07514058,109150.0,109130.0,0.24752188]
[1751546364845,0.07514058,109150.0,109140.0,0.00916245]
[1751546365056,0.07514058,109150.0,109130.0,0.24752121]
[1751546365270,0.07514058,109150.0,109140.0,0.00916237]
[1751546365534,0.07814058,109150.0,109130.0,0.22919587]
[1751546365746,0.09454058,109150.0,109130.0,0.22003283]
[1751546365954,0.10974058,109150.0,109130.0,0.22919478]
[1751546366162,0.09234058,109150.0,109130.0,0.23835791]
[1751546366367,0.09234058,109150.0,109140.0,0.01832483]
[1751546366569,0.09234058,109150.0,109140.0,0.20157578]
[1751546366774,0.09034058,109150.0,109130.0,0.23835749]
[1751546366982,0.48937464,109150.0,109130.0,0.22003208]
[1751546367202,0.43234058,109150.0,109140.0,0.19470404]
[1751546367445,0.35534058,109150.0,109140.0,0.00916254]
[1751546367661,0.35534058,109150.0,109140.0,0.20157586]
[1751546367873,0.34314058,109150.0,109140.0,0.21990043]
[1751546368058,0.34314058,109150.0,109140.0,0.22906238]
[1751546368253,0.00314058,109150.0,109140.0,0.33504016]
[1751546368909,0.00314058,109150.0,109140.0,0.31671601]
[1751546369099,0.00314058,109150.0,109140.0,0.21990043]
[1751546369254,0.00314058,109150.0,109140.0,0.22906238]
[1751546369482,0.41814058,109150.0,109130.0,0.028602]
[1751546369691,0.08831736,109140.0,109130.0,0.028602]
[1751546369896,0.08831736,109140.0,109100.0,0.0011]
[1751546369897,0.0432,109110.0,109100.0,0.0011]
[1751546370096,0.4306,109110.0,109100.0,0.028651]
[1751546370298,0.4306,109110.0,109100.0,0.2303006]
[1751546370485,0.4306,109110.0,109100.0,0.21191516]
[1751546370684,0.4306,109110.0,109100.0,0.22108047]
[1751546370685,0.3556,109110.0,109100.0,0.22108047]
[1751546371158,0.34,109110.0,109100.0,0.22108047]
[1751546371469,0.00014047,109110.0,109100.0,0.22108047]
[1751546371647,0.00214047,109110.0,109100.0,0.22108047]
[1751546371785,0.00214047,109110.0,109100.0,0.3125174]
[1751546372829,0.00214047,109110.0,109100.0,0.32944685]
[1751546373261,0.00314047,109110.0,109100.0,0.23800992]
[1751546373887,0.00314047,109110.0,109100.0,0.22108047]
[1751546374377,0.50314047,109110.0,109100.0,0.22108047]
[1751546374613,0.50314047,109110.0,109100.0,0.3125174]
[1751546375128,0.50314047,109110.0,109100.0,0.32943477]
[1751546375846,0.50314047,109110.0,109100.0,0.34397562]
[1751546376752,0.50464047,109110.0,109100.0,0.34397562]
[1751546377697,0.50464047,109110.0,109100.0,0.37237562]
[1751546378778,0.50464047,109110.0,109100.0,0.34397562]
[1751546383662,0.52044047,109110.0,109100.0,0.2288321]
[1751546383874,0.52044047,109110.0,109100.0,0.21191473]
[1751546384091,0.50464047,109110.0,109100.0,0.21191473]
[1751546384291,0.55283266,109110.0,109100.0,0.21191473]
[1751546384560,0.56963408,109110.0,109100.0,0.20274942]
[1751546384770,1.13316618,109110.0,109100.0,0.0011]
[1751546384961,1.09143408,109110.0,109100.0,0.0011]
[1751546385088,1.18126939,109110.0,109100.0,0.0011]
[1751546385291,1.19806792,109110.0,109100.0,0.0011]
[1751546385494,1.21586805,109110.0,109100.0,0.0011]
[1751546385696,1.30730498,109110.0,109100.0,0.0011]
[1751546386959,1.30530498,109110.0,109100.0,0.0011]
[1751546387194,1.14691027,109110.0,109100.0,0.0011]
[1751546387417,1.25797919,109110.0,109100.0,0.0011]
[1751546387616,1.26197919,109110.0,109100.0,0.0031]
[1751546388041,1.25293697,109110.0,109100.0,0.0031]
[1751546388294,1.03310303,109110.0,109100.0,0.18641805]
[1751546388475,1.03310785,109110.0,109100.0,0.0031]
[1751546388692,1.03650823,109110.0,109100.0,0.20474968]
[1751546388910,0.95480785,109110.0,109100.0,0.22308055]
[1751546389122,0.92630785,109110.0,109100.0,0.22308055]
[1751546389333,1.15244478,109110.0,109100.0,0.0031]
[1751546389547,1.20244478,109110.0,109100.0,0.0031]
[1751546390411,1.20244478,109110.0,109100.0,0.18641805]
[1751546390846,1.11100785,109110.0,109100.0,0.0031]
[1751546391055,1.11100785,109110.0,109100.0,0.19558386]
[1751546391303,1.11100785,109110.0,109100.0,0.21391507]
[1751546391504,0.97198937,109110.0,109100.0,0.22308038]
[1751546391705,1.02835025,109110.0,109100.0,0.22308038]
[1751546391909,0.95335025,109110.0,109100.0,0.22308038]
[1751546392080,1.02835025,109110.0,109100.0,0.22308038]
[1751546392288,0.91728937,109110.0,109100.0,0.22308038]
[1751546392903,0.57728937,109110.0,109100.0,0.22308038]
[1751546393399,0.65228937,109110.0,109100.0,0.31451731]
[1751546393612,0.5709734,109110.0,109100.0,0.31451731]
[1751546393830,0.5709734,109110.0,109100.0,0.32905816]
[1751546394048,2.67094184,109100.0,109090.0,0.60920044]
[1751546394285,2.67094184,109100.0,109090.0,0.7666036]
[1751546394500,2.18455729,109100.0,109090.0,0.7666036]
[1751546394749,2.18455729,109100.0,109090.0,0.36540091]
[1751546394970,2.18455729,109100.0,109090.0,0.7666036]
[1751546395407,2.18555729,109100.0,109090.0,0.7716036]
[1751546396085,2.18655729,109100.0,109090.0,0.79014445]
[1751546397843,1.74409862,109100.0,109090.0,0.79014445]
[1751546399265,1.74409862,109100.0,109090.0,0.38894176]
[1751546399894,1.74409862,109100.0,109090.0,0.79014445]
[1751546400300,1.74409862,109100.0,109090.0,0.33214176]
[1751546400508,1.74409862,109100.0,109090.0,0.36184176]
[1751546400925,1.74409862,109100.0,109090.0,0.76304445]
[1751546401379,0.93341782,109100.0,109090.0,1.13264445]
[1751546401626,0.82943746,109100.0,109090.0,1.13264445]
[1751546401852,0.82943746,109100.0,109090.0,0.73144176]
[1751546402083,0.41726108,109100.0,109090.0,1.1181036]
[1751546402322,0.1728017,109100.0,109090.0,0.71690091]
[1751546402552,0.07271736,109140.0,109130.0,0.22529763]
[1751546402780,0.09975976,109160.0,109150.0,0.21071817]
[1751546403017,0.09975976,109160.0,109150.0,0.3021551]
[1751546403244,0.07271736,109160.0,109150.0,0.3021551]
[1751546403472,0.07271736,109160.0,109150.0,0.3296921]
[1751546403952,0.07285848,109160.0,109150.0,0.3296921]
[1751546405746,0.07285848,109160.0,109150.0,0.0339483]
[1751546405747,0.13375848,109160.0,109150.0,0.0339483]
[1751546405975,0.19104433,109160.0,109150.0,0.0339483]
[1751546406207,0.18375848,109160.0,109150.0,0.05571583]
[1751546406437,0.18375848,109160.0,109150.0,0.05571753]
[1751546406671,0.18375848,109160.0,109150.0,0.24811323]
[1751546406895,0.13375848,109160.0,109150.0,0.22072054]
[1751546407118,0.75007126,109160.0,109150.0,0.02832484]
[1751546407351,0.69019541,109160.0,109150.0,0.02832484]
[1751546407616,0.69219541,109160.0,109150.0,0.02832484]
[1751546407823,0.69219541,109160.0,109150.0,0.24810467]
[1751546408046,0.69219541,109160.0,109150.0,0.24810459]
[1751546408262,0.52804112,109160.0,109150.0,0.05570889]
[1751546408470,0.52804112,109160.0,109150.0,0.02832484]
[1751546408670,0.58084523,109160.0,109150.0,0.05570889]
[1751546408981,0.52804112,109160.0,109150.0,0.05570889]
[1751546409191,0.54491807,109160.0,109150.0,0.05570744]
[1751546410514,0.54491807,109160.0,109150.0,0.02832339]
[1751546411436,0.41991807,109160.0,109150.0,0.22071909]
[1751546411651,0.636355,109160.0,109150.0,0.02832339]
[1751546411889,0.46991807,109160.0,109150.0,0.02832339]
[1751546412106,0.42591807,109160.0,109150.0,0.02932339]
[1751546412318,0.49491807,109160.0,109150.0,0.02832339]
[1751546412532,0.48631654,109160.0,109150.0,0.06486914]
[1751546412751,0.49031654,109160.0,109150.0,0.07503076]
[1751546412988,0.49031654,109160.0,109150.0,0.26742629]
[1751546413219,0.49031654,109160.0,109150.0,0.28574893]
[1751546413434,0.49031654,109160.0,109150.0,0.24004224]
[1751546414081,0.47343959,109160.0,109150.0,0.26629203]
[1751546414302,0.47343959,109160.0,109150.0,0.26629186]
[1751546414522,0.47343959,109160.0,109150.0,0.26629203]
[1751546414744,0.3787,109160.0,109150.0,0.2754528]
[1751546414958,0.421,109160.0,109150.0,0.2754528]
[1751546415380,0.421,109160.0,109150.0,0.30283685]
[1751546415566,0.346,109160.0,109150.0,0.30283685]
[1751546415816,0.4829,109160.0,109150.0,0.25702978]
[1751546416027,0.4079,109160.0,109150.0,0.23880735]
[1751546416241,0.4829,109160.0,109150.0,0.2479688]
[1751546416448,0.4833,109160.0,109150.0,0.25713016]
[1751546416646,0.4833,109160.0,109150.0,0.26629144]
[1751546416854,0.4083,109160.0,109150.0,0.26629144]
[1751546417093,0.4833,109160.0,109150.0,0.26629144]
[1751546417509,0.4833,109160.0,109150.0,0.26629136]
[1751546417730,0.4833,109160.0,109150.0,0.25713016]
[1751546417944,0.4083,109160.0,109150.0,0.27545255]
[1751546418151,0.3464,109160.0,109150.0,0.27545255]
[1751546418364,0.3464,109160.0,109150.0,0.30283838]
[1751546419034,0.0064,109160.0,109150.0,0.39427531]
[1751546419250,0.0064,109160.0,109150.0,0.81001885]
[1751546419470,0.0064,109160.0,109150.0,0.4362141]
[1751546420121,0.0064,109160.0,109150.0,0.4660141]
[1751546420548,0.0064,109160.0,109150.0,0.4955141]
[1751546421037,0.0064,109160.0,109150.0,0.6641341]
[1751546421301,0.0064,109160.0,109150.0,1.0105548]
[1751546421536,0.0064,109160.0,109150.0,1.0725548]
[1751546421788,0.0104,109180.0,109170.0,0.22522042]
[1751546422007,0.0104,109180.0,109170.0,0.74620313]
[1751546422234,0.0104,109180.0,109170.0,0.70970219]
[1751546422451,0.0104,109180.0,109170.0,0.74210219]
[1751546422693,0.0104,109180.0,109170.0,0.70970219]
[1751546422902,0.0104,109180.0,109170.0,0.70968831]
[1751546423103,0.0104,109180.0,109170.0,0.65495078]
[1751546423523,0.0104,109180.0,109170.0,1.05615347]
[1751546423757,0.0104,109180.0,109170.0,1.19089613]
[1751546423979,0.0004,109210.0,109200.0,0.21062169]
[1751546424200,0.0614,109210.0,109200.0,0.41130861]
[1751546424429,0.0004,109210.0,109200.0,0.36202862]
[1751546424648,0.0004,109210.0,109200.0,0.4532238]
[1751546424827,0.0004,109210.0,109200.0,0.6809438]
[1751546425353,0.0005411,109210.0,109200.0,0.6809438]
[1751546425606,0.0005411,109210.0,109200.0,0.39850669]
[1751546425812,0.4764411,109210.0,109200.0,0.07275066]
[1751546426020,0.4764411,109210.0,109200.0,0.04542915]
[1751546426235,0.5264411,109210.0,109200.0,0.04542915]
[1751546426634,0.5264411,109210.0,109200.0,0.05458665]
[1751546426873,0.5264411,109210.0,109200.0,0.04542915]
[1751546427086,0.5304411,109210.0,109200.0,0.04642915]
[1751546429380,0.5314411,109210.0,109200.0,0.04642915]
[1751546429594,0.5314411,109210.0,109200.0,0.02451636]
[1751546429595,0.68319388,109210.0,109200.0,0.02451636]
[1751546429818,0.62287803,109210.0,109200.0,0.02451636]
[1751546430045,0.62287803,109210.0,109200.0,0.04638167]
[1751546430540,0.85003803,109210.0,109200.0,0.04638167]
[1751546430779,0.62287803,109210.0,109200.0,0.22953185]
[1751546430989,0.5314411,109210.0,109200.0,0.04638167]
[1751546431212,0.0664411,109210.0,109200.0,0.25059131]
[1751546431451,0.1414411,109210.0,109200.0,0.25974823]
[1751546431660,0.0664411,109210.0,109200.0,0.25974839]
[1751546431873,0.0664411,109210.0,109200.0,0.25059131]
[1751546432094,0.1414411,109210.0,109200.0,0.25059131]
[1751546432312,0.1414411,109210.0,109200.0,0.24143406]
[1751546432529,0.0664411,109210.0,109200.0,0.23227689]
[1751546432742,0.0664411,109210.0,109200.0,0.21517291]
[1751546432743,0.1414411,109210.0,109200.0,0.21517291]
[1751546432959,0.1414411,109210.0,109200.0,0.02286531]
[1751546433182,0.1414411,109210.0,109200.0,0.001]
[1751546433183,1.12287803,109210.0,109200.0,0.001]
[1751546433406,0.62287803,109210.0,109200.0,0.02287186]
[1751546433617,0.5314411,109210.0,109200.0,0.02287186]
[1751546437782,0.62287803,109210.0,109200.0,0.02287186]
[1751546437987,0.62287803,109210.0,109200.0,0.001]
[1751546438214,0.62287803,109210.0,109200.0,0.02287211]
[1751546438957,0.62287803,109210.0,109200.0,0.21517971]
[1751546438958,0.5314411,109210.0,109200.0,0.21517971]
[1751546439163,0.4814411,109210.0,109200.0,0.22433688]
[1751546439371,0.4064411,109210.0,109200.0,0.22433705]
[1751546439586,0.4814411,109210.0,109200.0,0.02287211]
[1751546441294,0.4814411,109210.0,109200.0,0.03996947]
[1751546441810,0.0055411,109210.0,109200.0,0.30931267]
[1751546442018,0.0055411,109210.0,109200.0,0.28706992]
[1751546442639,0.0055411,109210.0,109200.0,0.32354799]
[1751546442853,0.0055411,109210.0,109200.0,0.29622648]
[1751546443058,0.1569,109220.0,109210.0,0.2106024]
[1751546443272,0.1569,109220.0,109210.0,0.28335218]
[1751546443484,0.075,109220.0,109210.0,0.28335218]
[1751546443890,0.5254,109230.0,109220.0,0.21058311]
[1751546444135,0.5254,109230.0,109220.0,0.25596651]
[1751546444361,0.34,109230.0,109220.0,0.23686915]
[1751546444569,0.1889,109240.0,109230.0,0.10140944]
[1751546444787,0.1139,109240.0,109230.0,0.16031418]
[1751546445005,0.0826,109240.0,109230.0,0.16031418]
[1751546445232,0.0004,109240.0,109230.0,0.68260892]
[1751546445446,0.0004,109240.0,109230.0,0.60867641]
[1751546445896,0.0004,109240.0,109230.0,0.63602714]
[1751546446327,0.0004,109240.0,109230.0,0.53584907]
[1751546446541,0.0004,109240.0,109230.0,0.54496953]
[1751546446749,0.0004,109240.0,109230.0,0.35032953]
[1751546446959,0.0004,109240.0,109230.0,0.58312953]
[1751546447173,0.0004,109240.0,109230.0,0.55292953]
[1751546447380,0.0004,109240.0,109230.0,0.54692953]
[1751546447603,0.0004,109240.0,109230.0,0.55970683]
[1751546447822,0.0004,109240.0,109230.0,0.31358778]
[1751546448036,0.0321,109240.0,109230.0,0.21299726]
[1751546448516,0.0004,109240.0,109230.0,0.21299726]
[1751546448719,0.0004,109240.0,109230.0,0.43975726]
[1751546448928,0.0004,109240.0,109230.0,0.21299735]
[1751546449171,0.0004,109240.0,109230.0,0.43060286]
[1751546449373,0.0004,109240.0,109230.0,0.21299743]
[1751546449581,0.0315,109240.0,109230.0,0.23130632]
[1751546449788,0.0315,109240.0,109230.0,0.43070711]
[1751546450409,0.0315,109240.0,109230.0,0.45805973]
[1751546450613,0.0315,109240.0,109230.0,0.43071946]
[1751546450832,0.0315,109240.0,109230.0,0.43976716]
[1751546451087,0.0315,109240.0,109230.0,0.15821933]
[1751546451320,0.0627,109240.0,109230.0,0.17652872]
[1751546451546,0.0627,109240.0,109230.0,0.18568321]
[1751546451979,0.0627,109240.0,109230.0,0.19483761]
[1751546452465,0.0627,109240.0,109230.0,0.18568312]
[1751546452671,0.0627,109240.0,109230.0,0.17652872]
[1751546452874,0.0627,109240.0,109230.0,0.18568321]
[1751546453082,0.0627,109240.0,109230.0,0.1765288]
[1751546453307,0.0627,109240.0,109230.0,0.06565498]
[1751546453523,0.0627,109240.0,109230.0,0.22139827]
[1751546453524,0.1127,109240.0,109230.0,0.22139827]
[1751546453741,0.1127,109240.0,109230.0,0.24886232]
[1751546453955,0.0004,109240.0,109230.0,0.28537331]
[1751546454378,0.0004,109240.0,109230.0,0.27621916]
[1751546454606,0.0618,109240.0,109230.0,0.27621924]
[1751546454816,0.0618,109240.0,109230.0,0.28537364]
[1751546455037,0.0618,109240.0,109230.0,0.28537373]
[1751546455244,0.0618,109240.0,109230.0,0.29452813]
[1751546455471,0.0004,109240.0,109230.0,0.29452813]
[1751546458078,0.0004,109240.0,109230.0,0.28537364]
[1751546458724,0.0004,109240.0,109230.0,0.37681057]
[1751546459590,0.0004,109240.0,109230.0,0.41328918]